[Event "Austria Championship Blitz 2024"]
[Site "Innsbruck"]
[Date "2024.06.01"]
[Round "9.23"]
[White "Walder, Elias"]
[Black "Kummer, Helmut"]
[Result "1/2-1/2"]
[ECO "A26"]
[WhiteElo "2035"]
[BlackElo "2212"]
[Annotator "RC"]
[PlyCount "96"]
[EventDate "2024.06.01"]
[EventType "swiss"]
[EventCountry "AUT"]
[SourceTitle "playchess.com"]
[Source "ChessBase"]
[SourceQuality "1"]
[TimeControl "180+2"]

1. c4 {[%emt 0:00:00]} e5 {[%emt 0:00:01]} 2. g3 {[%emt 0:00:01]} Nc6 {[%emt 0:00:02]} 3. Bg2 {[%emt 0:00:01]} Nf6 {[%emt 0:00:01]} 4. d3 {[%emt 0:00:03]} g6 {[%emt 0:00:01]} 5. Nc3 {[%emt 0:00:01]} Bg7 {[%emt 0:00:01]} 6. Nf3 {[%emt 0:00:02]} d6 {[%emt 0:00:03]} 7. O-O {[%emt 0:00:02]} O-O {[%emt 0:00:01]} 8. d4 {[%emt 0:00:02]} exd4 {[%emt 0:00:14]} 9. Nxd4 {[%emt 0:00:01]} Bd7 {[%emt 0:00:10]} 10. Nc2 {[%emt 0:00:05]} Rb8 {[%emt 0:00:05]} 11. b3 {[%emt 0:00:02]} Re8 {[%emt 0:00:08]} 12. Bb2 {[%emt 0:00:02]} Qc8 {[%emt 0:00:10]} 13. Re1 {[%emt 0:00:09]} Bh3 {[%emt 0:00:08]} 14. Bh1 {[%emt 0:00:03]} Ne5 {[%emt 0:00:08]} 15. Ne3 {[%emt 0:00:09]} Nfg4 {[%emt 0:00:15]} 16. Nxg4 {[%emt 0:00:07]} Nxg4 {[%emt 0:00:01]} 17. Qc2 {[%emt 0:00:13]} Re6 {[%emt 0:00:22]} 18. Nd5 {[%emt 0:00:08]} Re8 {[%emt 0:00:26]} 19. Bxg7 {[%emt 0:00:03]} Kxg7 {[%emt 0:00:01]} 20. Qc3+ {[%emt 0:00:12]} f6 {[%emt 0:00:07]} 21. Rad1 {[%emt 0:00:14]} Ne5 {[%emt 0:00:17]} 22. Rd2 {[%emt 0:00:14]} Be6 {[%emt 0:00:09]} 23. Bg2 {[%emt 0:00:04]} Bxd5 {[%emt 0:00:03]} 24. Rxd5 {[%emt 0:00:01]} Qe6 {[%emt 0:00:03]} 25. e3 {[%emt 0:00:07]} Nf7 {[%emt 0:00:06]} 26. Red1 {[%emt 0:00:03]} c6 {[%emt 0:00:07]} 27. R5d2 {[%emt 0:00:06]} Qe5 {[%emt 0:00:03]} 28. Qd4 {[%emt 0:00:04]} Qxd4 {[%emt 0:00:03]} 29. Rxd4 {[%emt 0:00:01]} Re5 {[%emt 0:00:03]} 30. Kf1 {[%emt 0:00:05]} Rbe8 {[%emt 0:00:02]} 31. Ke2 {[%emt 0:00:05]} Ra5 {[%emt 0:00:13]} 32. R1d2 {[%emt 0:00:02]} Rae5 {[%emt 0:00:02]} 33. h3 {[%emt 0:00:04]} h6 {[%emt 0:00:03]} 34. h4 {[%emt 0:00:02]} g5 {[%emt 0:00:03]} 35. hxg5 {[%emt 0:00:01]} hxg5 {[%emt 0:00:01]} 36. Rd1 {[%emt 0:00:04]} Rh8 {[%emt 0:00:00]} 37. Rh1 {[%emt 0:00:02]} Rxh1 {[%emt 0:00:03]} 38. Bxh1 {[%emt 0:00:01]} Re8 {[%emt 0:00:00]} 39. Rd1 {[%emt 0:00:06]} Rh8 {[%emt 0:00:02]} 40. Bf3 {[%emt 0:00:08]} f5 {[%emt 0:00:01]} 41. Rh1 {[%emt 0:00:03]} Rxh1 {[%emt 0:00:02]} 42. Bxh1 {[%emt 0:00:02]} Kf6 43. Bf3 {[%emt 0:01:23]} Kg7 {[%emt 0:00:04]} 44. Bh1 {[%emt 0:00:00]} Kf6 {[%emt 0:00:00]} 45. Kd3 {[%emt 0:00:00]} Ne5+ {[%emt 0:00:04]} 46. Kd2 {[%emt 0:00:00]} Nd7 {[%emt 0:00:02]} 47. Ke2 {[%emt 0:00:00]} Ke5 {[%emt 0:00:02]} 48. f4+ {[%emt 0:00:00]} gxf4 {[%emt 0:00:02]} 1/2-1/2

[Event "Austria Championship Blitz 2024"]
[Site "Innsbruck"]
[Date "2024.06.01"]
[Round "9.24"]
[White "Neuschmied, Siegfried"]
[Black "Sovago, Philipp"]
[Result "1-0"]
[ECO "B31"]
[WhiteElo "2234"]
[BlackElo "1954"]
[Annotator "RC"]
[PlyCount "79"]
[EventDate "2024.06.01"]
[EventType "swiss"]
[EventCountry "AUT"]
[SourceTitle "playchess.com"]
[Source "ChessBase"]
[SourceQuality "1"]
[TimeControl "180+2"]

1. e4 {[%emt 0:00:01]} c5 {[%emt 0:00:00]} 2. Nf3 {[%emt 0:00:02]} Nc6 {[%emt 0:00:01]} 3. Bb5 {[%emt 0:00:01]} g6 {[%emt 0:00:02]} 4. Bxc6 {[%emt 0:00:02]} bxc6 {[%emt 0:00:01]} 5. O-O {[%emt 0:00:03]} Bg7 {[%emt 0:00:01]} 6. Re1 {[%emt 0:00:03]} e6 {[%emt 0:00:04]} 7. d3 {[%emt 0:00:14]} d5 {[%emt 0:00:10]} 8. e5 {[%emt 0:00:01]} Ne7 {[%emt 0:00:03]} 9. b3 {[%emt 0:00:18]} O-O {[%emt 0:00:05]} 10. Bb2 {[%emt 0:00:08]} a5 {[%emt 0:00:05]} 11. a4 {[%emt 0:00:02]} Ba6 {[%emt 0:00:09]} 12. Nbd2 {[%emt 0:02:31]} Rb8 {[%emt 0:00:04]} 13. Rb1 {[%emt 0:00:00]} Qc7 {[%emt 0:00:11]} 14. Bc3 {[%emt 0:00:00]} d4 {[%emt 0:00:12]} 15. Bb2 {[%emt 0:00:00]} Nd5 {[%emt 0:00:02]} 16. Ne4 {[%emt 0:00:00]} Rfd8 {[%emt 0:00:08]} 17. Nxc5 {[%emt 0:00:00]} Qa7 {[%emt 0:00:28]} 18. Bxd4 {[%emt 0:00:00]} Nc3 {[%emt 0:00:11]} 19. Bxc3 {[%emt 0:00:00]} Qxc5 {[%emt 0:00:02]} 20. Qd2 {[%emt 0:00:00]} Rd5 {[%emt 0:00:11]} 21. Re4 {[%emt 0:00:00]} Rbd8 {[%emt 0:00:04]} 22. h4 {[%emt 0:00:00]} Qb6 {[%emt 0:00:17]} 23. Qe1 {[%emt 0:00:00]} Bf8 {[%emt 0:00:03]} 24. h5 {[%emt 0:00:00]} Bc5 {[%emt 0:00:12]} 25. hxg6 {[%emt 0:00:00]} hxg6 {[%emt 0:00:02]} 26. Rh4 {[%emt 0:00:00]} Kg7 {[%emt 0:00:12]} 27. Qd2 {[%emt 0:00:00]} Kf8 {[%emt 0:00:11]} 28. Rh8+ {[%emt 0:00:00]} Ke7 {[%emt 0:00:01]} 29. Qg5+ {[%emt 0:00:00]} Kd7 {[%emt 0:00:00]} 30. Rxd8+ {[%emt 0:00:00]} Qxd8 {[%emt 0:00:01]} 31. Qxd8+ {[%emt 0:00:00]} Kxd8 {[%emt 0:00:01]} 32. Bxa5+ {[%emt 0:00:00]} Kd7 {[%emt 0:00:03]} 33. Bd2 {[%emt 0:00:02]} Ba7 {[%emt 0:00:03]} 34. Re1 {[%emt 0:00:01]} Ke8 {[%emt 0:00:06]} 35. g3 {[%emt 0:00:01]} Rd7 {[%emt 0:00:02]} 36. Kg2 {[%emt 0:00:01]} Kf8 {[%emt 0:00:03]} 37. Rh1 {[%emt 0:00:03]} Kg7 {[%emt 0:00:01]} 38. Bh6+ {[%emt 0:00:01]} Kg8 {[%emt 0:00:02]} 39. Bg5 {[%emt 0:00:01]} Bc5 {[%emt 0:00:07]} 40. Bf6 {[%emt 0:00:01]} 1-0

[Event "Austria Championship Blitz 2024"]
[Site "Innsbruck"]
[Date "2024.06.01"]
[Round "10.1"]
[White "Blohberger, Felix"]
[Black "Horvath, Dominik"]
[Result "1-0"]
[ECO "A05"]
[WhiteElo "2506"]
[BlackElo "2554"]
[Annotator "RC"]
[PlyCount "93"]
[EventDate "2024.06.01"]
[EventType "swiss"]
[EventCountry "AUT"]
[SourceTitle "playchess.com"]
[Source "ChessBase"]
[SourceQuality "1"]
[TimeControl "180+2"]

1. Nf3 {[%emt 0:00:01]} Nf6 {[%emt 0:00:01]} 2. b3 {[%emt 0:00:01]} g6 {[%emt 0:00:05]} 3. Bb2 {[%emt 0:00:02]} Bg7 {[%emt 0:00:00]} 4. g3 {[%emt 0:00:07]} d5 {[%emt 0:00:04]} 5. c4 {[%emt 0:00:03]} dxc4 {[%emt 0:00:22]} 6. bxc4 {[%emt 0:00:01]} O-O {[%emt 0:00:01]} 7. Bg2 {[%emt 0:00:01]} c5 {[%emt 0:00:04]} 8. O-O {[%emt 0:00:03]} Nc6 {[%emt 0:00:01]} 9. d3 {[%emt 0:00:03]} Bd7 {[%emt 0:00:07]} 10. Nbd2 {[%emt 0:00:05]} Qc8 {[%emt 0:00:00]} 11. Rb1 {[%emt 0:00:11]} b6 {[%emt 0:00:04]} 12. Ne5 {[%emt 0:00:11]} Nxe5 {[%emt 0:00:15]} 13. Bxe5 {[%emt 0:00:03]} Bc6 {[%emt 0:00:02]} 14. a4 {[%emt 0:00:15]} Bxg2 {[%emt 0:00:01]} 15. Kxg2 {[%emt 0:00:01]} h5 {[%emt 0:00:09]} 16. Nf3 {[%emt 0:00:04]} Qc6 {[%emt 0:00:02]} 17. Kg1 {[%emt 0:00:02]} Rfd8 {[%emt 0:00:02]} 18. Qb3 {[%emt 0:00:06]} Qe6 {[%emt 0:00:11]} 19. Qb2 {[%emt 0:00:15]} Ne8 {[%emt 0:00:14]} 20. Ra1 {[%emt 0:00:08]} Bxe5 {[%emt 0:00:16]} 21. Qxe5 {[%emt 0:00:05]} Qxe5 22. Nxe5 {[%emt 0:00:01]} Nd6 {[%emt 0:00:17]} 23. Rfb1 {[%emt 0:00:04]} Kg7 {[%emt 0:00:13]} 24. a5 {[%emt 0:00:04]} bxa5 {[%emt 0:00:33]} 25. Rxa5 {[%emt 0:00:04]} Rdc8 {[%emt 0:00:01]} 26. Nd7 {[%emt 0:00:10]} Nf5 {[%emt 0:00:05]} 27. Nxc5 {[%emt 0:00:08]} Nd4 {[%emt 0:00:01]} 28. Rb2 {[%emt 0:00:22]} Nc6 {[%emt 0:00:02]} 29. Ra1 {[%emt 0:00:07]} Nd4 {[%emt 0:00:02]} 30. Ne4 {[%emt 0:00:09]} a5 {[%emt 0:00:04]} 31. Ra4 {[%emt 0:00:03]} Rab8 {[%emt 0:00:07]} 32. Rba2 {[%emt 0:00:15]} Nc6 {[%emt 0:00:04]} 33. Nc3 {[%emt 0:00:08]} e5 {[%emt 0:00:00]} 34. Nb5 {[%emt 0:00:04]} Rd8 {[%emt 0:00:11]} 35. f3 {[%emt 0:00:01]} f5 {[%emt 0:00:01]} 36. Nc7 {[%emt 0:00:22]} Kh6 {[%emt 0:00:04]} 37. Nd5 {[%emt 0:00:09]} Rb1+ {[%emt 0:00:01]} 38. Kf2 {[%emt 0:00:01]} Rh1 {[%emt 0:00:04]} 39. Kg2 {[%emt 0:00:02]} Rc1 {[%emt 0:00:05]} 40. Ra1 {[%emt 0:00:04]} Rxa1 41. Rxa1 {[%emt 0:00:01]} Ra8 {[%emt 0:00:06]} 42. Kf2 {[%emt 0:00:06]} a4 {[%emt 0:00:01]} 43. Ra3 {[%emt 0:00:05]} Nd4 {[%emt 0:00:05]} 44. Nc3 {[%emt 0:00:03]} Rb8 {[%emt 0:00:03]} 45. Rxa4 {[%emt 0:00:03]} Rb3 {[%emt 0:00:01]} 46. Nd1 {[%emt 0:00:04]} Rb2 {[%emt 0:00:01]} 47. Nxb2 {[%emt 0:00:01]} 1-0

[Event "Austria Championship Blitz 2024"]
[Site "Innsbruck"]
[Date "2024.06.01"]
[Round "10.2"]
[White "Schwabeneder, Florian"]
[Black "Wohlfahrt, Herbert"]
[Result "1/2-1/2"]
[ECO "C55"]
[WhiteElo "2405"]
[BlackElo "2328"]
[Annotator "RC"]
[PlyCount "205"]
[EventDate "2024.06.01"]
[EventType "swiss"]
[EventCountry "AUT"]
[SourceTitle "playchess.com"]
[Source "ChessBase"]
[SourceQuality "1"]
[TimeControl "180+2"]

1. e4 {[%emt 0:00:01]} e5 {[%emt 0:00:00]} 2. Bc4 {[%emt 0:00:03]} Nf6 {[%emt 0:00:02]} 3. d3 {[%emt 0:00:01]} Be7 {[%emt 0:00:08]} 4. Nf3 {[%emt 0:00:03]} Nc6 {[%emt 0:00:00]} 5. O-O {[%emt 0:00:04]} O-O {[%emt 0:00:02]} 6. Re1 {[%emt 0:00:01]} d6 {[%emt 0:00:01]} 7. a4 {[%emt 0:00:03]} h6 {[%emt 0:00:11]} 8. Nc3 {[%emt 0:00:02]} Re8 {[%emt 0:00:05]} 9. h3 {[%emt 0:00:07]} Bf8 {[%emt 0:00:02]} 10. a5 {[%emt 0:00:10]} a6 {[%emt 0:00:00]} 11. Nd5 {[%emt 0:00:04]} Nxd5 {[%emt 0:00:05]} 12. Bxd5 {[%emt 0:00:02]} Ne7 {[%emt 0:00:05]} 13. Bb3 {[%emt 0:00:13]} Ng6 {[%emt 0:00:01]} 14. c3 {[%emt 0:00:09]} Qf6 {[%emt 0:00:03]} 15. Nh2 {[%emt 0:00:13]} Be6 {[%emt 0:00:34]} 16. Bxe6 {[%emt 0:00:07]} fxe6 {[%emt 0:00:06]} 17. Qf3 {[%emt 0:00:06]} Qxf3 {[%emt 0:00:04]} 18. Nxf3 {[%emt 0:00:03]} Be7 {[%emt 0:00:07]} 19. g3 {[%emt 0:00:07]} Bf6 {[%emt 0:00:02]} 20. Kg2 {[%emt 0:00:04]} Ne7 {[%emt 0:00:06]} 21. Nh2 {[%emt 0:00:13]} c5 {[%emt 0:00:05]} 22. Ng4 {[%emt 0:01:50]} Rf8 23. Bd2 {[%emt 0:00:00]} Nc6 {[%emt 0:00:01]} 24. c4 {[%emt 0:00:00]} Nd4 {[%emt 0:00:18]} 25. Bc3 {[%emt 0:00:00]} Nc2 {[%emt 0:00:01]} 26. Rec1 {[%emt 0:00:00]} Nxa1 {[%emt 0:00:01]} 27. Rxa1 {[%emt 0:00:00]} Rab8 {[%emt 0:00:05]} 28. Ra3 {[%emt 0:00:00]} Kf7 {[%emt 0:00:02]} 29. Rb3 {[%emt 0:00:00]} Bd8 {[%emt 0:00:08]} 30. h4 {[%emt 0:00:00]} b5 {[%emt 0:00:13]} 31. axb6 {[%emt 0:00:00]} Rxb6 {[%emt 0:00:02]} 32. Ra3 {[%emt 0:00:00]} Rc6 {[%emt 0:00:04]} 33. h5 {[%emt 0:00:01]} Bg5 {[%emt 0:00:12]} 34. Bxe5 {[%emt 0:00:04]} Rb8 {[%emt 0:00:06]} 35. Bc3 {[%emt 0:00:04]} Bc1 {[%emt 0:00:04]} 36. Ra2 {[%emt 0:00:06]} Rcb6 {[%emt 0:00:03]} 37. Ne3 {[%emt 0:00:08]} Bxb2 {[%emt 0:00:11]} 38. Bxb2 {[%emt 0:00:01]} Rxb2 {[%emt 0:00:00]} 39. Rxa6 {[%emt 0:00:01]} R2b6 {[%emt 0:00:01]} 40. Ra7+ {[%emt 0:00:01]} R8b7 {[%emt 0:00:01]} 41. Ra8 {[%emt 0:00:04]} Rb3 {[%emt 0:00:01]} 42. Rc8 {[%emt 0:00:06]} Rxd3 {[%emt 0:00:06]} 43. e5 {[%emt 0:00:02]} Rb2 {[%emt 0:00:18]} 44. Ng4 {[%emt 0:00:02]} Rdd2 {[%emt 0:00:12]} 45. exd6 {[%emt 0:00:02]} Rxd6 {[%emt 0:00:01]} 46. Rc7+ {[%emt 0:00:01]} Kf8 {[%emt 0:00:03]} 47. Rxc5 {[%emt 0:00:01]} Rdd2 {[%emt 0:00:02]} 48. Rc7 {[%emt 0:00:02]} Rbc2 {[%emt 0:00:03]} 49. c5 {[%emt 0:00:03]} Rd5 {[%emt 0:00:07]} 50. c6 {[%emt 0:00:03]} Rdc5 {[%emt 0:00:02]} 51. Ra7 {[%emt 0:00:03]} Rxc6 {[%emt 0:00:27]} 52. Ne5 {[%emt 0:00:01]} Rc7 {[%emt 0:00:00]} 53. Ra8+ {[%emt 0:00:02]} Ke7 {[%emt 0:00:00]} 54. Rg8 {[%emt 0:00:03]} Kf6 {[%emt 0:00:00]} 55. Ng4+ {[%emt 0:00:01]} Kf7 {[%emt 0:00:00]} 56. Ra8 {[%emt 0:00:01]} Rb2 {[%emt 0:00:00]} 57. Ne3 {[%emt 0:00:03]} Rd7 {[%emt 0:00:00]} 58. Ra4 {[%emt 0:00:02]} Rc7 {[%emt 0:00:00]} 59. Ng4 {[%emt 0:00:02]} Ke7 {[%emt 0:00:00]} 60. Ne3 {[%emt 0:00:02]} Rd7 {[%emt 0:00:00]} 61. Rg4 {[%emt 0:00:02]} Kf8 {[%emt 0:00:00]} 62. Re4 {[%emt 0:00:03]} Rd6 {[%emt 0:00:00]} 63. Nc4 {[%emt 0:00:01]} Rdb6 {[%emt 0:00:00]} 64. Nxb2 Rxb2 {[%emt 0:00:00]} 65. Rxe6 {[%emt 0:00:02]} Rb4 {[%emt 0:00:00]} 66. f3 {[%emt 0:00:02]} Kf7 {[%emt 0:00:00]} 67. Re5 {[%emt 0:00:02]} Rb3 {[%emt 0:00:00]} 68. g4 {[%emt 0:00:01]} Rc3 {[%emt 0:00:00]} 69. Kg3 {[%emt 0:00:01]} Rc4 {[%emt 0:00:00]} 70. Rf5+ {[%emt 0:00:01]} Ke6 {[%emt 0:00:02]} 71. Ra5 {[%emt 0:00:00]} Kf6 {[%emt 0:00:02]} 72. Ra6+ {[%emt 0:00:03]} Kf7 {[%emt 0:00:01]} 73. Rb6 {[%emt 0:00:02]} Rd4 {[%emt 0:00:00]} 74. Kf2 {[%emt 0:00:02]} Ra4 {[%emt 0:00:03]} 75. Rb5 {[%emt 0:00:03]} Kf6 {[%emt 0:00:03]} 76. Ke3 {[%emt 0:00:02]} Ra3+ {[%emt 0:00:01]} 77. Kf4 {[%emt 0:00:00]} Ra4+ {[%emt 0:00:00]} 78. Kg3 {[%emt 0:00:01]} Rc4 {[%emt 0:00:01]} 79. Rb6+ {[%emt 0:00:01]} Kf7 {[%emt 0:00:01]} 80. Rd6 {[%emt 0:00:04]} Ke7 {[%emt 0:00:02]} 81. Rd3 {[%emt 0:00:01]} Kf6 {[%emt 0:00:02]} 82. f4 {[%emt 0:00:02]} Rc1 {[%emt 0:00:01]} 83. Rd6+ {[%emt 0:00:01]} Kf7 {[%emt 0:00:01]} 84. Rd5 {[%emt 0:00:05]} Rg1+ {[%emt 0:00:02]} 85. Kf3 {[%emt 0:00:00]} Rf1+ {[%emt 0:00:01]} 86. Ke4 {[%emt 0:00:01]} Kf6 {[%emt 0:00:21]} 87. Rd6+ {[%emt 0:00:03]} Ke7 {[%emt 0:00:02]} 88. Ra6 {[%emt 0:00:03]} Rb1 {[%emt 0:00:05]} 89. Kf5 {[%emt 0:00:04]} Kf7 {[%emt 0:00:10]} 90. Ra7+ {[%emt 0:00:01]} Kg8 {[%emt 0:00:01]} 91. Re7 {[%emt 0:00:06]} Rb5+ {[%emt 0:00:05]} 92. Re5 {[%emt 0:00:08]} Rb6 {[%emt 0:00:15]} 93. Re6 {[%emt 0:00:00]} Rb4 {[%emt 0:00:00]} 94. g5 {[%emt 0:00:00]} hxg5 {[%emt 0:00:00]} 95. fxg5 {[%emt 0:00:00]} Kh7 {[%emt 0:00:00]} 96. Re7 {[%emt 0:00:04]} Rb5+ {[%emt 0:00:00]} 97. Re5 {[%emt 0:00:01]} Rb1 {[%emt 0:00:00]} 98. Re8 {[%emt 0:00:03]} Rf1+ {[%emt 0:00:00]} 99. Kg4 {[%emt 0:00:02]} Rg1+ {[%emt 0:00:00]} 100. Kf4 {[%emt 0:00:01]} Rf1+ {[%emt 0:00:00]} 101. Kg3 {[%emt 0:00:03]} Rg1+ {[%emt 0:00:01]} 102. Kf4 {[%emt 0:00:01]} Rf1+ {[%emt 0:00:00]} 103. Ke4 {[%emt 0:00:07]} 1/2-1/2

[Event "Austria Championship Blitz 2024"]
[Site "Innsbruck"]
[Date "2024.06.01"]
[Round "10.3"]
[White "Platzgummer, Fabian"]
[Black "Shengelia, David"]
[Result "1/2-1/2"]
[ECO "E17"]
[WhiteElo "2311"]
[BlackElo "2465"]
[Annotator "TA"]
[PlyCount "85"]
[EventDate "2024.06.01"]
[EventType "swiss"]
[EventCountry "AUT"]
[SourceTitle "playchess.com"]
[Source "ChessBase"]
[SourceQuality "1"]
[TimeControl "180+2"]

{[%evp 19,85,14,13,19,101,91,96,2,20,7,27,20,47,43,46,47,83,81,78,85,97,83,250,76,80,77,71,72,85,72,169,108,136,126,186,186,175,187,187,120,112,-56,-66,-428,-428,-430,-430,-429,-141,-385,-124,-108,-110,-151,-128,-320,-304,-435,-168,-255,0,0,0,0,0,0,0,0]} 1. Nf3 {[%emt 0:00:02]} Nf6 {[%emt 0:00:01]} 2. c4 {[%emt 0:00:01]} e6 {[%emt 0:00:02]} 3. g3 {[%emt 0:00:03]} b6 {[%emt 0:00:01]} 4. Bg2 {[%emt 0:00:01]} Bb7 {[%emt 0:00:01]} 5. O-O {[%emt 0:00:02]} Be7 {[%emt 0:00:01]} 6. Nc3 {[%emt 0:00:02]} O-O {[%emt 0:00:02]} 7. Re1 {[%emt 0:00:02]} d5 {[%emt 0:00:13]} 8. cxd5 {[%emt 0:00:02]} exd5 {[%emt 0:00:02]} 9. d4 {[%emt 0:00:01]} Nbd7 {[%emt 0:00:02]} 10. Bf4 {[%emt 0:00:02]} c5 {[%emt 0:00:03]} 11. Rc1 {[%emt 0:00:08]} c4 {[%emt 0:00:25]} (11... Ne4 $11 {remains equal.}) 12. Ne5 {[%emt 0:00:10]} Rc8 {[%emt 0:00:01]} 13. h3 {[%emt 0:00:11] White has more active pieces.} (13. Qa4 $16 Nxe5 14. dxe5) 13... a6 $11 {[%emt 0:00:16]} 14. a4 {[%emt 0:00:13]} Nxe5 {[%emt 0:00:24]} 15. dxe5 {[%emt 0:00:05]} Ne4 {[%emt 0:00:03]} 16. Nxe4 {[%emt 0:00:14]} dxe4 {[%emt 0:00:01]} 17. Qc2 {[%emt 0:00:01]} Qd5 {[%emt 0:00:18]} 18. Red1 {[%emt 0:00:01]} Qc6 {[%emt 0:00:25]} 19. Rd4 {[%emt 0:00:05][%csl LRc4,LRe4][%cal Rg2e4]} Qc5 {[%emt 0:00:35]} 20. Rxc4 {[%emt 0:02:16]} ({And not} 20. Qxc4 g5 21. Bxe4 Bxe4 22. Rxe4 gxf4 23. Rxf4 Qxc4 (23... Qxe5 24. Qxc8 Rxc8 25. Rg4+ Bg5 26. Rxc8+ Kg7 27. h4 $16) 24. Rfxc4 Rxc4 25. Rxc4 Rd8 $19) 20... Qa5 {[%emt 0:00:17]} (20... Qd5 $16 {is a better defense.}) 21. Rxc8 $2 (21. Bxe4 $18 {and White stays clearly on top.} Rxc4 22. Qxc4) 21... Rxc8 $16 {[%emt 0:00:01]} 22. Qd1 {[%emt 0:00:00]} Rxc1 {[%emt 0:00:14]} 23. Qxc1 {[%emt 0:00:00]} Qc5 {[%emt 0:00:11]} 24. Qd2 {[%emt 0:00:00]} h6 {[%emt 0:00:02]} (24... Qd5 $16 {was worth a try.}) 25. Be3 {[%emt 0:00:00]} ({Better is} 25. Qd7 $18 Bc8 26. Qe8+ Bf8 27. Be3 (27. Bxe4 Be6 $16)) 25... Qc6 {[%emt 0:00:03]} 26. Qd4 {[%emt 0:00:00]} Bc5 {[%emt 0:00:02]} (26... b5 $16) 27. Qd8+ $18 {[%emt 0:00:00]} Kh7 {[%emt 0:00:01]} 28. Bxc5 {[%emt 0:00:00]} Qxc5 {[%emt 0:00:01][%mdl 4096] Endgame. KQB-KQB} 29. Qd7 {[%emt 0:00:02]} (29. b4 $18 Qc6 (29... Qxb4 $2 {is the wrong capture.} 30. Qd7 $18) 30. e3) 29... Bd5 $16 {[%emt 0:00:00] [#]} 30. e6 $2 {[%emt 0:00:04]} fxe6 $15 {[%emt 0:00:06]} 31. e3 $2 {[%emt 0:00:05][%mdl 8192]} (31. b3 $15) 31... Qc1+ $19 {[%emt 0:00:02]} 32. Kh2 {[%emt 0:00:01]} Qxb2 {[%emt 0:00:01]} 33. Qf7 {[%emt 0:00:01]} Qf6 {[%emt 0:00:01]} (33... b5 $19 {has better winning chances.} 34. axb5 axb5 (34... Qxb5 35. h4 $17)) 34. Qa7 $2 {[%emt 0:00:05] [#]} (34. Qxf6 $17 gxf6 35. Bf1) 34... Qxf2 $2 {[%emt 0:00:02]} (34... b5 $1 $19 {[%cal Rb5b4] is more deadly.} 35. axb5 axb5) 35. Qxb6 $17 {[%emt 0:00:01][%cal Oa4a5] [#]} a5 $1 {[%emt 0:00:02][%mdl 512]} 36. Qc5 {[%emt 0:00:02]} Qe2 {[%emt 0:00:04]} 37. Qd4 $2 {[%emt 0:00:01]} (37. h4 $17 {was the only defense.}) 37... Qd3 $19 {[%emt 0:00:01] Threatens to win with ...Qxd4.} 38. Kg1 {[%emt 0:00:05]} (38. Qa7 {keeps fighting.}) 38... Qb1+ $2 {[%emt 0:00:03]} (38... Kg6 {...Qxd4 is the strong threat.} 39. Bf1 Qxd4 40. exd4 e3 41. Bd3+ Kg5) 39. Kh2 {[%emt 0:00:02]} (39. Bf1 $142) 39... Qb3 $2 {[%emt 0:00:02]} (39... Qb4 $19 {Strongly threatening ...Qxd4.} 40. Qa1 Qd2) 40. Bxe4+ $11 {[%emt 0:00:01] The position is equal.} Bxe4 {[%emt 0:00:00]} 41. Qxe4+ {[%emt 0:00:01]} Kg8 {[%emt 0:00:01]} 42. Qa8+ {[%emt 0:00:01]} Kh7 {[%emt 0:00:01]} 43. Qe4+ {[%emt 0:00:01] Weighted Error Value: White=0.70/Black=0.61.  Loses game:     	White=3     	Black=1      Missed win:     	White=1     	Black=3      Mistake:       	White=6     	Black=4      Inaccurate:     	---       	Black=1      OK:         	White=7     	Black=6      Best:        	White=6     	Black=6      Brilliant:      	---       	Black=1} 1/2-1/2

[Event "Austria Championship Blitz 2024"]
[Site "Innsbruck"]
[Date "2024.06.01"]
[Round "10.4"]
[White "Balint, Peter"]
[Black "Kruckenhauser, Arthur"]
[Result "0-1"]
[ECO "B78"]
[WhiteElo "2343"]
[BlackElo "2340"]
[Annotator "RC"]
[PlyCount "76"]
[EventDate "2024.06.01"]
[EventType "swiss"]
[EventCountry "AUT"]
[SourceTitle "playchess.com"]
[Source "ChessBase"]
[SourceQuality "1"]
[TimeControl "180+2"]

1. e4 {[%emt 0:00:00]} c5 {[%emt 0:00:00]} 2. Nf3 {[%emt 0:00:01]} d6 {[%emt 0:00:01]} 3. d4 {[%emt 0:00:01]} cxd4 {[%emt 0:00:01]} 4. Nxd4 {[%emt 0:00:00]} Nf6 {[%emt 0:00:00]} 5. Nc3 {[%emt 0:00:01]} g6 {[%emt 0:00:01]} 6. Be3 {[%emt 0:00:02]} Bg7 {[%emt 0:00:01]} 7. f3 {[%emt 0:00:02]} O-O {[%emt 0:00:02]} 8. Qd2 {[%emt 0:00:02]} Nc6 {[%emt 0:00:00]} 9. Bc4 {[%emt 0:00:01]} Bd7 {[%emt 0:00:01]} 10. O-O-O {[%emt 0:00:01]} Rc8 {[%emt 0:00:01]} 11. Bb3 {[%emt 0:03:13]} Nxd4 {[%emt 0:00:03]} 12. Bxd4 {[%emt 0:00:00]} b5 {[%emt 0:00:00]} 13. Nd5 {[%emt 0:00:00]} Nxd5 {[%emt 0:00:06]} 14. Bxg7 Kxg7 {[%emt 0:00:01]} 15. exd5 {[%emt 0:00:00]} a5 {[%emt 0:00:00]} 16. a3 {[%emt 0:00:00]} Qb6 {[%emt 0:00:13]} 17. Rhe1 {[%emt 0:00:00]} Rfe8 {[%emt 0:00:03]} 18. Kb1 {[%emt 0:00:00]} a4 {[%emt 0:00:09]} 19. Ba2 {[%emt 0:00:00]} Bf5 {[%emt 0:00:02]} 20. Rc1 {[%emt 0:00:00]} h5 {[%emt 0:00:09]} 21. h3 {[%emt 0:00:00]} h4 {[%emt 0:00:07]} 22. Ka1 {[%emt 0:00:00]} Rc7 {[%emt 0:00:35]} 23. c3 {[%emt 0:00:00]} Qa7 {[%emt 0:00:14]} 24. Rcd1 {[%emt 0:00:00]} f6 {[%emt 0:00:21]} 25. Re3 {[%emt 0:00:00]} Qc5 {[%emt 0:00:33]} 26. Rde1 {[%emt 0:00:00]} Qa7 {[%emt 0:00:09]} 27. Qf2 {[%emt 0:00:00]} b4 {[%emt 0:00:19]} 28. axb4 {[%emt 0:00:00]} a3 {[%emt 0:00:05]} 29. R3e2 {[%emt 0:00:00]} axb2+ {[%emt 0:00:11]} 30. Kxb2 {[%emt 0:00:00]} Qb7 {[%emt 0:00:09]} 31. Bb3 {[%emt 0:00:00]} Rec8 {[%emt 0:00:04]} 32. Qd4 {[%emt 0:00:10]} g5 {[%emt 0:00:05]} 33. Re3 {[%emt 0:00:05]} Kf7 {[%emt 0:00:02]} 34. Ra1 {[%emt 0:00:01]} Qb5 {[%emt 0:00:06]} 35. Qd2 {[%emt 0:00:15]} Qb6 {[%emt 0:00:04]} 36. c4 {[%emt 0:00:07]} Rxc4 {[%emt 0:00:06]} 37. Bxc4 {[%emt 0:00:01]} Rxc4 {[%emt 0:00:01]} 38. Rc3 {[%emt 0:00:08]} Qxb4+ {[%emt 0:00:02]} 0-1